bitfinex/quotes_BTCUSD_20241130
["timestamp","ask_amount","ask_price","bid_price","bid_amount"]
[1732955410075,0.103044,97045.0,97044.0,0.0047302]
[1732955410277,0.103044,97045.0,97044.0,0.0017302]
[1732955411113,0.103044,97045.0,97044.0,0.0037302]
[1732955411332,0.103044,97045.0,97044.0,0.0047302]
[1732955421574,0.103044,97045.0,97044.0,0.0027302]
[1732955421993,0.103044,97045.0,97044.0,0.0047302]
[1732955422477,0.103044,97045.0,97044.0,0.0037302]
[1732955422634,0.103044,97045.0,97044.0,0.0047302]
[1732955424164,0.103044,97045.0,97044.0,0.0037302]
[1732955424579,0.103044,97045.0,97044.0,0.0017302]
[1732955428627,0.1039092,97045.0,97044.0,0.0017302]
[1732955429355,0.20675441,97045.0,97044.0,0.0017302]
[1732955429721,0.25455441,97045.0,97044.0,0.0017302]
[1732955430643,0.25555441,97045.0,97044.0,0.0017302]
[1732955431999,0.25755441,97045.0,97044.0,0.0017302]
[1732955435318,0.20975441,97045.0,97044.0,0.0017302]
[1732955440756,0.24195818,97045.0,97044.0,0.0017302]
[1732955444502,0.37075818,97045.0,97044.0,0.0017302]
[1732955444733,0.47062355,97045.0,97044.0,0.0017302]
[1732955445384,0.37075818,97045.0,97044.0,0.0017302]
[1732955457863,0.36875818,97045.0,97044.0,0.0017302]
[1732955458315,0.37775818,97045.0,97044.0,0.0027302]
[1732955459170,0.37675818,97045.0,97044.0,0.0027302]
[1732955459620,0.38275818,97045.0,97044.0,0.0027302]
[1732955460460,0.48515755,97045.0,97044.0,0.0027302]
[1732955462459,0.48600701,97045.0,97044.0,0.0027302]
[1732955464689,0.63600701,97045.0,97044.0,0.0027302]
[1732955468237,0.48600701,97045.0,97044.0,0.0027302]
[1732955468695,0.64600701,97045.0,97044.0,0.0027302]
[1732955469334,0.6621405,97045.0,97044.0,0.0027302]
[1732955470430,0.103057,97033.0,97032.0,0.0008652]
[1732955470672,0.36590598,97033.0,97032.0,0.0008652]
[1732955472020,0.37490598,97033.0,97032.0,0.0018652]
[1732955472171,0.38592905,97033.0,97032.0,0.0018652]
[1732955472645,0.103077,97014.0,97013.0,0.0780298]
[1732955472930,0.20592221,97014.0,97013.0,0.0780298]
[1732955473942,0.20592221,97014.0,97013.0,0.0017298]
[1732955475043,0.20592221,97014.0,97013.0,0.0037298]
[1732955475489,0.20592221,97014.0,97013.0,0.0017298]
[1732955475714,0.20592221,97014.0,97013.0,0.0047298]
[1732955475906,0.20692221,97014.0,97013.0,0.0017298]
[1732955476518,0.20892221,97014.0,97013.0,0.0017298]
[1732955477696,0.22971778,97014.0,97013.0,0.0017298]
[1732955478185,0.24084524,97014.0,97013.0,0.0017298]
[1732955481079,0.27298217,97014.0,97013.0,0.0017298]
[1732955481858,0.103085,97007.0,97006.0,0.0812]
[1732955482060,0.20593021,97007.0,97006.0,0.0812]
[1732955483082,0.20593021,97007.0,97006.0,0.0822]
[1732955488558,0.20593021,97007.0,97006.0,0.1277]
[1732955489888,0.03192303,97014.0,97010.0,0.0455]
[1732955490059,0.02079557,97014.0,97013.0,0.103078]
[1732955490400,0.02079557,97014.0,97011.0,0.10308]
[1732955490542,0.02079557,97014.0,97012.0,0.103079]
[1732955490683,0.02079557,97014.0,97013.0,0.226978]
[1732955490889,0.206115,97034.0,97023.0,0.0784]
[1732955491083,0.206119,97031.0,97024.0,0.0784]
[1732955491336,0.10284521,97030.0,97024.0,0.0784]
[1732955491480,0.206123,97029.0,97024.0,0.0784]
[1732955491677,0.103065,97026.0,97024.0,0.0784]
[1732955491896,0.02067145,97025.0,97024.0,0.0784]
[1732955493318,0.02267145,97025.0,97024.0,0.0784]
[1732955494410,0.02267145,97025.0,97024.0,0.181467]
[1732955494645,0.02267145,97025.0,97024.0,0.0784]
[1732955495332,0.02367145,97025.0,97024.0,0.181467]
[1732955495637,0.02367145,97025.0,97024.0,0.0784]
[1732955498927,0.02453705,97025.0,97024.0,0.0784]
[1732955500397,0.12760305,97025.0,97024.0,0.0784]
[1732955500928,0.02453705,97025.0,97024.0,0.0784]
[1732955501308,0.12760305,97025.0,97024.0,0.0784]
[1732955502252,0.02453705,97025.0,97024.0,0.0784]
[1732955502694,0.12760305,97025.0,97024.0,0.0784]
[1732955506312,0.103074,97017.0,97016.0,0.0822]
[1732955506534,0.20591921,97017.0,97016.0,0.0822]
[1732955507843,0.20591921,97017.0,97016.0,0.0832]
[1732955509611,0.20591921,97017.0,97016.0,0.0852]
[1732955509815,0.20091921,97017.0,97016.0,0.0852]
[1732955510477,0.20091921,97017.0,97016.0,0.0832]
[1732955511299,0.20091921,97017.0,97016.0,0.0822]
[1732955512122,0.20091921,97017.0,97016.0,0.0832]
[1732955512315,0.20091921,97017.0,97016.0,0.0842]
[1732955515981,0.19091921,97017.0,97016.0,0.0842]
[1732955518646,0.18091921,97017.0,97016.0,0.0842]
[1732955519630,0.18091921,97017.0,97016.0,0.002]
[1732955521553,0.10284521,97017.0,97016.0,0.002]
[1732955521763,0.20591921,97017.0,97016.0,0.002]
[1732955521977,0.10284521,97017.0,97016.0,0.002]
[1732955522207,0.20591921,97017.0,97016.0,0.002]
[1732955522620,0.10284521,97017.0,97016.0,0.002]
[1732955523310,0.20591921,97017.0,97016.0,0.002]
[1732955523548,0.10284521,97017.0,97016.0,0.002]
[1732955523753,0.10284521,97017.0,97016.0,0.00161223]
[1732955523971,0.20591921,97017.0,97016.0,0.00161223]
[1732955524163,0.20591921,97017.0,97016.0,0.00043808]
[1732955531437,0.103076,97016.0,97013.0,0.0017312]
[1732955531695,0.10284521,97015.0,97013.0,0.0017312]
[1732955532909,0.10284521,97015.0,97013.0,0.0037312]
[1732955534909,0.20592121,97015.0,97013.0,0.0047312]
[1732955535356,0.103077,97014.0,97013.0,0.0037312]
[1732955535557,0.20592221,97014.0,97013.0,0.0037312]
[1732955535911,0.20592221,97014.0,97013.0,0.0047312]
[1732955536233,0.20592221,97014.0,97013.0,0.0037312]
[1732955536234,0.10284521,97014.0,97013.0,0.0037312]
[1732955536410,0.20592221,97014.0,97013.0,0.0037312]
[1732955537547,0.10284521,97014.0,97013.0,0.0037312]
[1732955538101,0.20592221,97014.0,97013.0,0.0067312]
[1732955540124,0.20592221,97014.0,97013.0,0.0067312]
[1732955540481,0.10284521,97014.0,97013.0,0.0067312]
[1732955540686,0.20592221,97014.0,97013.0,0.0067312]
[1732955542013,0.10284521,97014.0,97013.0,0.0067312]
[1732955542161,0.20592221,97014.0,97013.0,0.0067312]
[1732955544355,0.10284521,97014.0,97013.0,0.0067312]
[1732955545224,0.20592221,97014.0,97013.0,0.0067312]
[1732955547753,0.24718421,97014.0,97013.0,0.0067312]
[1732955556277,0.24718421,97014.0,97013.0,0.0017312]
[1732955556735,0.24718421,97014.0,97013.0,0.0047312]
[1732955557569,0.27939602,97014.0,97013.0,0.0047312]
[1732955557870,0.24718421,97014.0,97013.0,0.0047312]
[1732955558078,0.24718421,97014.0,97013.0,0.0037312]
[1732955558432,0.27939651,97014.0,97013.0,0.0027312]
[1732955558851,0.27939651,97014.0,97013.0,0.0047312]
[1732955558852,0.32729651,97014.0,97013.0,0.0047312]
[1732955564455,0.31729651,97014.0,97013.0,0.0047312]
[1732955570726,0.31817654,97014.0,97013.0,0.0047312]
[1732955575097,0.31817654,97014.0,97013.0,0.0037312]
[1732955575098,0.34111317,97014.0,97013.0,0.0037312]
[1732955575319,0.31817654,97014.0,97013.0,0.0017312]
[1732955575555,0.31917654,97014.0,97013.0,0.0017312]
[1732955575777,0.32117654,97014.0,97013.0,0.0017312]
[1732955576902,0.31117654,97014.0,97013.0,0.0017312]
[1732955581463,0.31204214,97014.0,97013.0,0.0017312]
[1732955582939,0.39372406,97014.0,97013.0,0.0017312]
[1732955584092,0.31204214,97014.0,97013.0,0.0017312]
[1732955584871,0.3228166,97014.0,97013.0,0.0017312]
[1732955585705,0.27403657,97014.0,97013.0,0.0017312]
[1732955588079,0.103087,97005.0,97004.0,0.06240522]
[1732955588284,0.20593221,97005.0,97004.0,0.06240522]
[1732955589371,0.20593221,97005.0,97004.0,0.06540522]
[1732955590248,0.20593221,97005.0,97004.0,0.06240522]
[1732955590471,0.20593221,97005.0,97004.0,0.06440522]
[1732955590650,0.20593221,97005.0,97004.0,0.06540522]
[1732955591103,0.20593221,97005.0,97004.0,0.06340522]
[1732955591457,0.20593221,97005.0,97004.0,0.06440522]
[1732955591660,0.23814265,97005.0,97004.0,0.06440522]
[1732955592087,0.23814265,97005.0,97004.0,0.002]
[1732955593213,0.23814265,97005.0,97004.0,0.0028656]
[1732955596299,0.24919913,97005.0,97004.0,0.0028656]
[1732955596506,0.27015053,97005.0,97004.0,0.0028656]
[1732955596947,0.27015053,97005.0,97004.0,0.0018656]
[1732955597168,0.27315053,97005.0,97004.0,0.0008656]
[1732955597829,0.27515053,97005.0,97004.0,0.0008656]
[1732955598055,0.27215053,97005.0,97004.0,0.0008656]
[1732955598506,0.27315053,97005.0,97004.0,0.0008656]
[1732955598726,0.28281733,97005.0,97004.0,0.0008656]
[1732955598936,0.28181733,97005.0,97004.0,0.0008656]
[1732955599151,0.27981733,97005.0,97004.0,0.0008656]
[1732955599554,0.28181733,97005.0,97004.0,0.0008656]
[1732955600470,0.28181829,97005.0,97004.0,0.0008656]
[1732955600938,0.28281827,97005.0,97004.0,0.0008656]
[1732955601162,0.17973127,97005.0,97004.0,0.1233656]
[1732955601392,0.14752083,97005.0,97004.0,0.1233656]
[1732955601838,0.13785309,97005.0,97004.0,0.1233656]
[1732955602254,0.13685309,97005.0,97004.0,0.1233656]
[1732955602492,0.23794009,97005.0,97004.0,0.1233656]
[1732955602711,0.23794009,97005.0,97004.0,0.1243656]
[1732955602916,0.13485309,97005.0,97004.0,0.1243656]
[1732955603327,0.23794009,97005.0,97004.0,0.1243656]
[1732955603516,0.13485309,97005.0,97004.0,0.1253656]
[1732955603773,0.23794009,97005.0,97004.0,0.1253656]
[1732955604636,0.13485309,97005.0,97004.0,0.1253656]
[1732955605308,0.12379661,97005.0,97004.0,0.1253656]
[1732955605549,0.10284521,97005.0,97004.0,0.1253656]
[1732955614746,0.10284521,97005.0,97004.0,0.2284536]
[1732955614950,0.10284521,97005.0,97004.0,0.1253656]
[1732955616692,0.10457601,97005.0,97004.0,0.1253656]
[1732955621275,0.09957601,97005.0,97004.0,0.1253656]
[1732955626310,0.0017308,97005.0,97004.0,0.2284536]
[1732955636307,0.0017308,97005.0,97004.0,0.2514536]
[1732955646790,0.0017308,97005.0,97004.0,0.2403536]
[1732955647608,0.0017308,97005.0,97004.0,0.2503536]
[1732955648595,0.0017308,97005.0,97004.0,0.2493536]
[1732955649892,0.0017308,97005.0,97004.0,0.2503536]
[1732955650094,0.0017308,97005.0,97004.0,0.2493536]
[1732955650539,0.0027308,97005.0,97004.0,0.254219]
[1732955651009,0.0027308,97005.0,97004.0,0.258219]
[1732955682251,0.0027308,97005.0,97004.0,0.26898165]
[1732955700630,0.0027308,97005.0,97004.0,0.23421605]
[1732955704170,0.00216989,97005.0,97004.0,0.23421605]
[1732955707953,0.00216989,97005.0,97004.0,0.04362805]
[1732955708158,0.00216989,97005.0,97004.0,0.04545252]
[1732955708366,0.00216989,97005.0,97004.0,0.04362805]
[1732955708571,0.00216989,97005.0,97004.0,0.0328654]
[1732955712132,0.10525689,97005.0,97004.0,0.0328654]
[1732955712339,0.23315689,97005.0,97004.0,0.0098654]
[1732955713660,0.23315689,97005.0,97004.0,0.0328654]
[1732955714588,0.3360021,97005.0,97004.0,0.0328654]
[1732955715475,0.3350021,97005.0,97004.0,0.0238654]
[1732955715690,0.3370021,97005.0,97004.0,0.0238654]
[1732955716120,0.3380021,97005.0,97004.0,0.0238654]
[1732955716330,0.3380021,97005.0,97004.0,0.0008654]
[1732955716547,0.3350021,97005.0,97004.0,0.0008654]
[1732955716984,0.3360021,97005.0,97004.0,0.0008654]
[1732955718043,0.3380021,97005.0,97004.0,0.0008654]
[1732955718321,0.3360021,97005.0,97004.0,0.0008654]
[1732955718745,0.3370021,97005.0,97004.0,0.0008654]
[1732955719145,0.3400021,97005.0,97004.0,0.0008654]
[1732955719363,0.3400021,97005.0,96976.0,0.01]
[1732955719364,0.0454,96988.0,96978.0,0.023]
[1732955719779,0.103108,96986.0,96978.0,0.023]
[1732955720206,0.0454,96988.0,96978.0,0.023]
[1732955720207,0.10976226,96988.0,96978.0,0.023]
[1732955720439,0.06436226,96988.0,96983.0,0.023]
[1732955720643,0.06436226,96988.0,96979.0,0.20623]
[1732955720644,5.958e-05,96988.0,96980.0,0.103113]
[1732955720848,5.958e-05,96988.0,96981.0,0.023]
[1732955721056,5.958e-05,96988.0,96983.0,0.023]
[1732955721257,5.958e-05,96988.0,96982.0,0.0825]
[1732955721258,0.00105958,96988.0,96987.0,0.03256591]
[1732955721695,5.958e-05,96988.0,96987.0,0.03256591]
[1732955721909,0.00105958,96988.0,96987.0,0.03256591]
[1732955722564,0.00205958,96988.0,96987.0,0.03656591]
[1732955723204,0.00205958,96988.0,96987.0,0.13967191]
[1732955723431,0.00205958,96988.0,96987.0,0.14449671]
[1732955723888,0.00205958,96988.0,96987.0,0.14267191]
[1732955724103,0.00205958,96988.0,96987.0,0.03956591]
[1732955725026,0.00205958,96988.0,96987.0,0.04105481]
[1732955725250,0.00205958,96988.0,96987.0,0.03923003]
[1732955725986,0.00205958,96988.0,96987.0,0.14233603]
[1732955726216,0.00205958,96988.0,96987.0,0.14416082]
[1732955726645,0.00205958,96988.0,96987.0,0.14233603]
[1732955727701,0.00205958,96988.0,96987.0,0.14416083]
[1732955732362,0.00205958,96988.0,96987.0,0.14502623]
[1732955732782,0.00205958,96988.0,96987.0,0.04192023]
[1732955732980,0.00205958,96988.0,96987.0,0.04009543]
[1732955733642,0.00205958,96988.0,96987.0,0.0308654]
[1732955735604,0.04332658,96988.0,96987.0,0.04009543]
[1732955737069,0.04332658,96988.0,96987.0,0.12020143]
[1732955737284,0.04332658,96988.0,96987.0,0.01709543]
[1732955737518,0.04332658,96988.0,96987.0,0.12020143]
[1732955737965,0.04332658,96988.0,96987.0,0.01709543]
[1732955739028,0.04332658,96988.0,96987.0,0.12020143]
[1732955741310,0.04332658,96988.0,96987.0,0.01709543]
[1732955741535,0.04332658,96988.0,96987.0,0.12020143]
[1732955744560,0.04505758,96988.0,96987.0,0.12020143]
[1732955746076,0.00379058,96988.0,96987.0,0.27402626]
[1732955746305,0.00379058,96988.0,96987.0,0.52504664]
[1732955746739,0.00379058,96988.0,96987.0,0.53615307]
[1732955746955,0.00379058,96988.0,96987.0,0.53315307]
[1732955747393,0.00179058,96988.0,96987.0,0.52915307]
[1732955747626,0.00979058,96988.0,96987.0,0.53015307]
[1732955747859,0.01879058,96988.0,96987.0,0.53015307]
[1732955748085,0.01079058,96988.0,96987.0,0.52915307]
[1732955748318,0.01079058,96988.0,96987.0,0.53015307]
[1732955748580,0.01779058,96988.0,96987.0,0.53015307]
[1732955771948,0.01779058,96988.0,96987.0,0.48195307]
[1732955772165,0.01779058,96988.0,96987.0,0.40115307]
[1732955776393,0.01779058,96988.0,96987.0,0.29830786]
[1732955776612,0.01779058,96988.0,96987.0,0.27530786]
[1732955776613,0.06519058,96988.0,96987.0,0.27530786]
[1732955776766,0.06519058,96988.0,96987.0,0.01297183]
[1732955777131,0.06519058,96988.0,96987.0,0.0018654]
[1732955777751,0.05819058,96988.0,96987.0,0.0008654]
[1732955778188,0.04919058,96988.0,96987.0,0.0008654]
[1732955778387,0.12829058,96988.0,96987.0,0.0068654]
[1732955778854,0.12829058,96988.0,96987.0,0.0008654]
[1732955779060,0.23239558,96988.0,96987.0,0.0068654]
[1732955779262,0.13029058,96988.0,96987.0,0.0068654]
[1732955779685,0.12929058,96988.0,96987.0,0.0068654]
[1732955780090,0.12929058,96988.0,96987.0,0.0108654]
[1732955783647,0.23239558,96988.0,96987.0,0.0108654]
[1732955784532,0.12929058,96988.0,96987.0,0.0108654]
[1732955784903,0.23239558,96988.0,96987.0,0.0108654]
[1732955787386,0.23213579,96988.0,96968.0,0.00923003]
[1732955787622,0.23213579,96988.0,96966.0,0.0017306]
[1732955787623,0.1256,96975.0,96966.0,0.0017306]
[1732955787836,0.103127,96967.0,96966.0,0.0017306]
[1732955789392,0.104127,96967.0,96966.0,0.0067306]
[1732955790278,0.001,96967.0,96966.0,0.0107306]
[1732955790506,0.104127,96967.0,96966.0,0.0107306]
[1732955792070,0.001,96967.0,96966.0,0.0107306]
[1732955792702,0.104127,96967.0,96966.0,0.0107306]
[1732955792924,0.001,96967.0,96966.0,0.0107306]
[1732955799185,0.0471,96967.0,96966.0,0.0107306]
[1732955802116,0.04583197,96967.0,96966.0,0.0107306]
[1732955802341,0.06639165,96967.0,96966.0,0.0107306]
[1732955803624,0.02055968,96967.0,96966.0,0.0107306]
[1732955804285,0.103121,96973.0,96966.0,0.0107306]
[1732955804526,0.10284521,96973.0,96966.0,0.0107306]
[1732955805204,0.0461,96972.0,96966.0,0.0057306]
[1732955805406,0.0206576,96975.0,96973.0,0.10312]
[1732955805863,0.0206576,96975.0,96971.0,0.206247]
[1732955806330,0.06436226,96980.0,96971.0,0.206247]
[1732955806552,0.06436226,96980.0,96970.0,0.00923003]
[1732955806773,0.06436226,96980.0,96973.0,0.002]
[1732955806988,0.06436226,96980.0,96973.0,0.004]
[1732955807428,0.06436226,96980.0,96973.0,0.002]
[1732955807905,0.02072571,96979.0,96970.0,0.00923003]
[1732955808116,0.02072571,96979.0,96967.0,0.10495213]
[1732955808322,0.103117,96977.0,96965.0,0.0008653]
[1732955808735,0.103118,96976.0,96965.0,0.0008653]
[1732955808991,0.103119,96976.0,96965.0,0.0008653]
[1732955809638,0.10312,96974.0,96965.0,0.0008653]
[1732955809847,0.103124,96971.0,96965.0,0.0008653]
[1732955810053,0.046,96970.0,96966.0,0.0027306]
[1732955810505,0.149125,96970.0,96966.0,0.0027306]
[1732955810715,0.149125,96970.0,96966.0,0.0017306]
[1732955810716,0.046,96970.0,96966.0,0.0017306]
[1732955810941,0.046,96970.0,96966.0,0.0037306]
[1732955811383,0.103126,96969.0,96966.0,0.0037306]
[1732955811808,0.046,96970.0,96966.0,0.0037306]
[1732955812450,0.103125,96969.0,96966.0,0.0037306]
[1732955813127,0.103125,96969.0,96966.0,0.0017306]
[1732955813561,0.103125,96969.0,96966.0,0.0047306]
[1732955813987,0.103127,96967.0,96966.0,0.0017306]
[1732955814275,0.103127,96967.0,96966.0,0.0027306]
[1732955814953,0.046,96970.0,96966.0,0.0017306]
[1732955815175,0.103126,96969.0,96966.0,0.0017306]
[1732955816052,0.103127,96968.0,96966.0,0.0017306]
[1732955816293,0.046,96970.0,96966.0,0.0037306]
[1732955816762,0.103126,96969.0,96966.0,0.0037306]
[1732955816977,0.149125,96970.0,96966.0,0.0017306]
[1732955817199,0.149125,96970.0,96966.0,0.0027306]
[1732955817428,0.103126,96969.0,96966.0,0.0027306]
[1732955817651,0.103127,96968.0,96966.0,0.0027306]
[1732955817855,0.046,96970.0,96966.0,0.0017306]
[1732955818126,0.103125,96969.0,96966.0,0.0017306]
[1732955818341,0.103125,96969.0,96966.0,0.0027306]
[1732955818733,0.046,96970.0,96966.0,0.0027306]
[1732955818734,0.149125,96970.0,96966.0,0.0027306]
[1732955818972,0.103125,96969.0,96966.0,0.0027306]
[1732955819185,0.103127,96968.0,96966.0,0.0027306]
[1732955819620,0.103125,96969.0,96966.0,0.0017306]
[1732955819825,0.103127,96967.0,96966.0,0.0027306]
[1732955820062,0.103125,96969.0,96966.0,0.0027306]
[1732955820285,0.046,96970.0,96966.0,0.0017306]
[1732955820749,0.046,96970.0,96966.0,0.0027306]
[1732955820966,0.103126,96969.0,96966.0,0.0027306]
[1732955821207,0.149125,96970.0,96966.0,0.0017306]
[1732955821420,0.103126,96969.0,96966.0,0.0017306]
[1732955822542,0.046,96970.0,96966.0,0.0017306]
[1732955822760,0.103127,96967.0,96966.0,0.0017306]
[1732955822988,0.046,96970.0,96966.0,0.0017306]
[1732955823246,0.103127,96968.0,96966.0,0.0017306]
[1732955823508,0.046,96970.0,96966.0,0.0017306]
[1732955823509,0.103127,96967.0,96966.0,0.0027306]
[1732955823773,0.103126,96969.0,96966.0,0.0027306]
[1732955823983,0.046,96970.0,96966.0,0.0017306]
[1732955824197,0.001,96967.0,96966.0,0.0017306]
[1732955824641,0.103125,96969.0,96966.0,0.0017306]
[1732955824854,0.25225,96970.0,96966.0,0.0017306]
[1732955825071,0.103126,96969.0,96966.0,0.0017306]
[1732955825286,0.103127,96968.0,96966.0,0.0017306]
[1732955825713,0.103125,96969.0,96966.0,0.0017306]
[1732955825939,0.001,96969.0,96966.0,0.0017306]
[1732955826192,0.104126,96969.0,96966.0,0.0017306]
[1732955826397,0.25225,96970.0,96966.0,0.0017306]
[1732955826651,0.046,96970.0,96966.0,0.0017306]
[1732955826922,0.103127,96967.0,96966.0,0.0017306]
[1732955827146,0.046,96970.0,96966.0,0.0017306]
[1732955827393,0.103127,96967.0,96966.0,0.0017306]
[1732955827594,0.149125,96970.0,96966.0,0.0017306]
[1732955827807,0.103126,96969.0,96966.0,0.0017306]
[1732955828249,0.104127,96968.0,96966.0,0.0017306]
[1732955828462,0.103127,96968.0,96966.0,0.0017306]
[1732955828670,0.103127,96967.0,96966.0,0.0017306]
[1732955829322,0.103127,96968.0,96966.0,0.0017306]
[1732955829564,0.001731,96969.0,96966.0,0.0017306]
[1732955829780,0.103127,96968.0,96966.0,0.0017306]
[1732955830258,0.001731,96969.0,96966.0,0.0017306]
[1732955830722,0.104856,96969.0,96966.0,0.0017306]
[1732955831151,0.103126,96968.0,96966.0,0.0017306]
[1732955831588,0.002731,96969.0,96966.0,0.0017306]
[1732955832013,0.105856,96969.0,96966.0,0.0017306]
[1732955832193,0.103126,96968.0,96966.0,0.0017306]
[1732955832399,0.103127,96967.0,96966.0,0.0017306]
[1732955832602,0.001,96968.0,96966.0,0.0017306]
[1732955832818,0.103127,96967.0,96966.0,0.0017306]
[1732955834789,0.12396207,96967.0,96966.0,0.0017306]
[1732955837244,0.22680728,96967.0,96966.0,0.0017306]
[1732955837454,0.30642808,96967.0,96966.0,0.0017306]
[1732955838950,0.31142808,96967.0,96966.0,0.0017306]
[1732955839179,0.33654787,96967.0,96966.0,0.0017306]
[1732955839395,0.33854787,96967.0,96966.0,0.0017306]
[1732955839904,0.33654787,96967.0,96966.0,0.0017306]
[1732955840332,0.33954787,96967.0,96966.0,0.0017306]
[1732955840743,0.34127887,96967.0,96966.0,0.0017306]
[1732955840986,0.33327887,96967.0,96966.0,0.0017306]
[1732955841208,0.33827887,96967.0,96966.0,0.0017306]
[1732955842325,0.34027887,96967.0,96966.0,0.0017306]
[1732955842530,0.31515908,96967.0,96966.0,0.0017306]
[1732955848798,0.34027887,96967.0,96966.0,0.0017306]
[1732955857031,0.34162219,96967.0,96966.0,0.0017306]
[1732955857683,0.34128582,96967.0,96966.0,0.0017306]
[1732955862628,0.49128582,96967.0,96966.0,0.0017306]
[1732955863290,0.50206004,96967.0,96966.0,0.0017306]
[1732955867679,0.49128582,96967.0,96966.0,0.0017306]
[1732955868750,0.56948582,96967.0,96966.0,0.0017306]
[1732955869920,0.56448582,96967.0,96966.0,0.0017306]
[1732955870331,0.57348582,96967.0,96966.0,0.0017306]
[1732955871158,0.57148582,96967.0,96966.0,0.0017306]
[1732955871588,0.57648582,96967.0,96966.0,0.0017306]
[1732955872013,0.57148582,96967.0,96966.0,0.0017306]
[1732955872247,0.57548582,96967.0,96966.0,0.0017306]
[1732955873587,0.57548582,96967.0,96950.0,0.0008654]
[1732955873588,0.103144,96951.0,96950.0,0.0008654]
[1732955873795,0.23821001,96951.0,96950.0,0.0008654]
[1732955874237,0.23879877,96951.0,96950.0,0.0008654]
[1732955874859,0.24079877,96951.0,96950.0,0.00146228]
[1732955875338,0.24021001,96951.0,96950.0,0.00146228]
[1732955876191,0.23921001,96951.0,96950.0,0.00146228]
[1732955876628,0.24121001,96951.0,96950.0,0.00146228]
[1732955877048,0.2663298,96951.0,96950.0,0.00146228]
[1732955877252,0.26692597,96951.0,96950.0,0.00146228]
[1732955878345,0.24533901,96951.0,96950.0,0.00146228]
[1732955879738,0.24533901,96951.0,96919.0,0.0792]
[1732955879739,0.103177,96920.0,96919.0,0.0792]
[1732955880142,0.20602221,96920.0,96919.0,0.0792]
[1732955880374,0.13502534,96920.0,96919.0,0.0792]
[1732955881227,0.10384521,96920.0,96919.0,0.0792]
[1732955881445,0.11499331,96920.0,96919.0,0.0792]
[1732955881629,0.11499331,96920.0,96912.0,0.0792]
[1732955881894,0.10467117,96919.0,96912.0,0.0792]
[1732955882572,0.02,96914.0,96912.0,0.0792]
[1732955882796,0.10284521,96913.0,96912.0,0.0792]
[1732955883235,0.10467117,96913.0,96912.0,0.0792]
[1732955883449,0.11361943,96913.0,96912.0,0.0792]
[1732955883993,0.01077422,96913.0,96912.0,0.182386]
[1732955884214,0.01277422,96913.0,96912.0,0.228986]
[1732955884433,0.01077422,96913.0,96912.0,0.228986]
[1732955884868,0.02,96914.0,96912.0,0.13503003]
[1732955885090,0.02,96914.0,96913.0,0.228985]
[1732955885353,0.00182596,96939.0,96930.0,0.0792]
[1732955885566,0.00182596,96938.0,96930.0,0.0792]
[1732955885794,0.00182596,96938.0,96935.0,0.103161]
[1732955886006,0.00182596,96938.0,96932.0,0.20633]
[1732955886007,0.00182596,96938.0,96934.0,0.103162]
[1732955886188,0.02019825,96936.0,96932.0,0.20633]
[1732955886425,0.02019825,96936.0,96934.0,0.103162]
[1732955886658,0.02019825,96936.0,96933.0,0.103163]
[1732955886874,0.02019825,96936.0,96933.0,0.206328]
[1732955887101,0.02019825,96936.0,96935.0,0.103161]
[1732955887309,0.02019825,96936.0,96933.0,0.00011078]
[1732955887558,0.00182596,96935.0,96933.0,0.00011078]
[1732955888409,0.10284521,96934.0,96933.0,0.00011078]
[1732955888642,0.10467117,96934.0,96933.0,0.00011078]
[1732955889965,0.10667117,96934.0,96933.0,0.00011078]
[1732955891151,0.10667117,96934.0,96933.0,0.10327478]
[1732955891358,0.10484521,96934.0,96933.0,0.10327478]
[1732955891571,0.002,96934.0,96933.0,0.10327478]
[1732955893889,0.002,96934.0,96933.0,0.23930481]
[1732955894598,0.002,96934.0,96933.0,0.38930481]
[1732955895523,0.06758103,96950.0,96933.0,0.29737667]
[1732955895748,0.00321877,96950.0,96949.0,0.229947]
[1732955896167,0.02381485,96950.0,96949.0,0.229947]
[1732955897910,0.02881485,96950.0,96949.0,0.229947]
[1732955898586,0.02381485,96950.0,96949.0,0.229947]
[1732955899046,0.02381485,96950.0,96949.0,0.231947]
[1732955903640,0.02381485,96950.0,96949.0,0.24117703]
[1732955904087,0.00321877,96950.0,96949.0,0.24117703]
[1732955905583,0.00321877,96950.0,96949.0,0.39117703]
[1732955910299,0.00494897,96950.0,96949.0,0.39117703]
[1732955915431,0.00494897,96950.0,96949.0,0.39117703]
[1732955917599,0.00494897,96950.0,96949.0,0.51702224]
[1732955921404,0.00494897,96950.0,96949.0,0.53702224]
[1732955921612,0.001731,96967.0,96966.0,0.23775803]
[1732955921845,0.001731,96967.0,96966.0,0.51360324]
[1732955922862,0.00232707,96967.0,96966.0,0.51360324]
[1732955923091,0.00332707,96967.0,96966.0,0.51660324]
[1732955923299,0.00232707,96967.0,96966.0,0.52360324]
[1732955923776,0.01832707,96967.0,96966.0,0.52460324]
[1732955925697,0.01832707,96967.0,96966.0,0.53460324]
[1732955926310,0.01832707,96967.0,96966.0,0.51160324]
[1732955926748,0.01832707,96967.0,96966.0,0.52288803]
[1732955933793,0.01832707,96967.0,96966.0,0.54588803]
[1732955937144,0.01832707,96967.0,96966.0,0.53588803]
[1732955939223,0.01832707,96967.0,96966.0,0.52588803]
[1732955939429,0.01832707,96967.0,96966.0,0.53588803]
[1732955945278,0.01832707,96967.0,96966.0,0.54588803]
[1732955945703,0.001731,96980.0,96979.0,0.26234503]
[1732955947897,0.001731,96980.0,96979.0,0.26734503]
[1732955948999,0.001731,96980.0,96979.0,0.27534503]
[1732955949000,0.002731,96980.0,96979.0,0.27534503]
[1732955949657,0.002731,96980.0,96979.0,0.28630815]
[1732955953581,0.002731,96980.0,96979.0,0.27707812]
[1732955953796,0.002731,96980.0,96979.0,0.28630815]
[1732955955565,0.002731,96980.0,96979.0,0.03319315]
[1732955955771,0.001731,96980.0,96979.0,0.27330815]
[1732955956179,0.001731,96980.0,96979.0,0.27730815]
[1732955956397,0.001731,96980.0,96979.0,0.27330815]
[1732955956621,0.001731,96980.0,96979.0,0.17019315]
[1732955956835,0.001731,96980.0,96979.0,0.005]
[1732955956836,0.151745,96980.0,96979.0,0.005]
[1732955957276,0.232745,96980.0,96979.0,0.005]
[1732955957694,0.232745,96980.0,96979.0,0.008]
[1732955958151,0.232745,96980.0,96975.0,0.00923003]
[1732955958357,0.22957096,96980.0,96975.0,0.00923003]
[1732955958564,0.232014,96980.0,96979.0,0.005]
[1732955958798,0.103115,96979.0,96975.0,0.00923003]
[1732955959295,0.233014,96980.0,96975.0,0.00923003]
[1732955959500,0.1299,96980.0,96975.0,0.00923003]
[1732955959707,0.098115,96979.0,96975.0,0.00923003]